[Event "44th Chess Olympiad Open 2022"]
[Site "Chennai"]
[Date "2022.08.05"]
[Round "7.61"]
[White "Rocha, Maximiliano"]
[Black "Anhwere, Bernard"]
[Result "1-0"]
[ECO "B50"]
[WhiteElo "2117"]
[BlackElo "1890"]
[Annotator "TA"]
[PlyCount "85"]
[EventDate "2022.07.29"]
[EventType "team-tourn"]
[EventCountry "IND"]
[SourceTitle "playchess.com"]
[Source "ChessBase"]
[SourceQuality "1"]
[WhiteTeam "Nicaragua"]
[BlackTeam "Ghana"]
[WhiteTeamCountry "NCA"]
[BlackTeamCountry "GHA"]
[TimeControl "40/5400+30:1800+30"]

{[%evp 15,85,0,23,19,51,14,23,0,11,-28,-15,-20,20,17,9,2,50,43,30,23,22,37,29,30,34,13,4,0,14,0,0,0,0,0,7,0,83,107,84,39,89,66,176,95,179,120,141,142,211,166,162,52,270,322,323,312,314,312,354,344,507,497,490,475,448,455,583,585,548,517,2022,2012]} 1. e4 {[%emt 0:00:04]} c5 {[%emt 0:00:45]} 2. Nf3 {[%emt 0:01:11]} d6 {[%emt 0:00:22]} 3. Bc4 {[%emt 0:00:28]} e6 {[%emt 0:00:43]} 4. O-O {[%emt 0:00:06]} Nf6 {[%emt 0:00:19]} 5. d3 {[%emt 0:00:12]} Be7 {[%emt 0:00:22]} 6. Re1 {[%emt 0:01:06]} O-O {[%emt 0:00:14]} 7. Bb3 {[%emt 0:00:04]} Nc6 {[%emt 0:03:17]} 8. c3 {[%emt 0:00:07]} e5 {[%emt 0:03:02]} 9. h3 $1 {[%emt 0:04:21][%mdl 4] outshines the older 9.Nbd2. B50: Sicilian: 2...d6, Miscellaneous.} b5 {[%emt 0:06:00] [#]} 10. Bg5 $146 {[%emt 0:03:21]} ({Predecessor:} 10. Nbd2 Na5 11. Bc2 Re8 12. Nf1 a6 13. d4 cxd4 14. cxd4 Nc6 15. Ng3 g6 16. Bb3 exd4 17. Nxd4 Na5 18. Bc2 Bb7 19. Bh6 Nd7 20. Ndf5 gxf5 21. exf5 Bf6 22. Rxe8+ Qxe8 {½-½ (22) Savic,M (2511)-Radovanovic,N (2389) Dvorovi 2016}) 10... Rb8 {[%emt 0:02:38]} 11. Nbd2 {[%emt 0:01:18] White has an edge.} a5 {[%emt 0:00:30][%cal Ba7a5,Ba5a4][%mdl 32]} (11... h6 $5 {[%cal Rh6g5]} 12. Bxf6 Bxf6 $11) 12. Nf1 {[%emt 0:09:35]} a4 {[%emt 0:06:20]} 13. Bc2 {[%emt 0:00:05]} Be6 {[%emt 0:00:55]} 14. d4 {[%emt 0:05:45]} exd4 {[%emt 0:03:24]} 15. cxd4 {[%emt 0:00:07]} Nb4 {[%emt 0:03:12]} (15... Nxd4 $11 {deserves consideration.} 16. Nxd4 cxd4) 16. Bb1 $14 {[%emt 0:08:38]} d5 {[%emt 0:10:45]} 17. Bxf6 {[%emt 0:20:28]} Bxf6 {[%emt 0:01:25]} 18. e5 {[%emt 0:00:04]} Be7 {[%emt 0:00:50]} 19. dxc5 {[%emt 0:00:07]} Bxc5 {[%emt 0:02:23]} 20. a3 {[%emt 0:01:19]} Na6 {[%emt 0:00:24]} (20... Qb6 21. axb4 Bxf2+ 22. Kh1 Bxe1 23. Qxe1 $16) 21. Ne3 {[%emt 0:00:29]} Qd7 {[%emt 0:20:20]} 22. Ng5 $40 {[%emt 0:16:11][%mdl 128] White has some attack.} g6 {[%emt 0:03:57]} 23. Ba2 {[%emt 0:08:16][%cal Re3d5]} Rfd8 {[%emt 0:02:03]} 24. Qf3 {[%emt 0:00:41]} Be7 {[%emt 0:05:21]} 25. Qf4 {[%emt 0:02:16]} Kg7 {[%emt 0:09:11]} (25... b4 $11 {keeps the balance.}) 26. Rad1 $16 {[%emt 0:02:18] Threatens to win with Bxd5.} (26. Nxe6+ fxe6 27. Rac1 (27. Ng4 Rf8 $11) (27. Bxd5 $2 exd5 28. e6 Qc7 $19) 27... Rf8 $15) (26. Qh4 $6 h6 27. Nxe6+ fxe6 $11) 26... Nc7 {[%emt 0:04:11]} 27. h4 {[%emt 0:03:50][%cal Bh3h4,Bh4h5][%mdl 32] White is much more active.} ({Don't do} 27. Qh4 Rh8 $14) 27... h6 {[%emt 0:02:37]} (27... Qe8 $14) 28. Ne4 {[%emt 0:01:41] Hoping for Nf6. Pair of Knights!} b4 {[%emt 0:04:06]} ({Black should play} 28... d4 $14) 29. Nf6 $18 {[%emt 0:00:10]} Bxf6 {[%emt 0:01:15]} (29... Qc8 $16 {is a better defense.}) 30. Qxf6+ {[%emt 0:02:41]} (30. exf6+ $18 Kh7 31. h5 (31. axb4 Qd6 $14)) 30... Kh7 {[%emt 0:00:32] [#]} 31. h5 $1 {[%emt 0:01:09][%cal Oe3d5]} Qe8 {[%emt 0:01:28]} (31... bxa3 $16 32. bxa3 Ne8) 32. Rc1 {[%emt 0:01:55]} Rd7 {[%emt 0:00:41][%cal Bd8d7,Bd7c7,Bc7c6][%mdl 32]} 33. Bb1 {[%emt 0:00:16]} (33. Rc6 $18) 33... Rb6 $2 {[%emt 0:01:23] [#] Black cannot hold the game after this.} (33... bxa3 $1 $14 34. bxa3 d4) 34. Rxc7 $1 {[%emt 0:03:41][%mdl 512]} Rxc7 {[%emt 0:00:22]} 35. Nxd5 {[%emt 0:00:07] Dancing on a razor blade.} Bxd5 {[%emt 0:00:38]} 36. Qxb6 {[%emt 0:00:14]} Rc6 {[%emt 0:00:24]} 37. Qxb4 {[%emt 0:00:06]} Qe6 {[%emt 0:00:54]} (37... Bb3 $142 38. hxg6+ fxg6 39. Qb7+ Kg8) 38. hxg6+ {[%emt 0:02:43] White is clearly winning.} fxg6 {[%emt 0:00:02]} 39. Qxa4 {[%emt 0:01:52]} h5 {[%emt 0:00:46]} 40. Qh4 {[%emt 0:00:21]} Kh6 {[%emt 0:00:53]} 41. f4 {[%emt 0:30:56][%cal Bf2f4,Bf4f5][%mdl 32] Qg5+ is the strong threat.} Kg7 {[%emt 0:04:57]} 42. Qg5 {[%emt 0:00:00] aiming for f5.} Kf7 {[%emt 0:01:08]} (42... Qg4 $142 43. Qxg4 hxg4) 43. f5 {[%emt 0:00:00] Weighted Error Value: White=0.12 (very precise) /Black=0.47} 1-0

[Event "44th Chess Olympiad Open 2022"]
[Site "Chennai"]
[Date "2022.08.05"]
[Round "7.61"]
[White "Espinoza Solano, Jose Nahum"]
[Black "Adu Jnr, Lionel"]
[Result "1-0"]
[ECO "B13"]
[WhiteElo "2093"]
[BlackElo "1824"]
[Annotator "TA"]
[PlyCount "139"]
[EventDate "2022.07.29"]
[EventType "team-tourn"]
[EventCountry "IND"]
[SourceTitle "playchess.com"]
[Source "ChessBase"]
[SourceQuality "1"]
[WhiteTeam "Nicaragua"]
[BlackTeam "Ghana"]
[WhiteTeamCountry "NCA"]
[BlackTeamCountry "GHA"]
[TimeControl "40/5400+30:1800+30"]

{[%evp 30,139,0,0,9,13,27,22,21,28,33,0,29,37,22,20,62,61,63,12,56,42,41,33,39,0,0,0,0,-29,0,0,0,0,0,0,0,0,0,0,204,204,204,204,204,204,197,197,197,197,220,220,381,372,367,365,365,238,238,238,1116,1001,29969,29971,29970,29971,29974,29972,29973,29970,29970,29971,29962,212,212,212,212,212,29969,212,212,83,29969,29970,29970,29971,29971,29972,29972,29973,29976,29977,29977,29978,29978,29979,29979,29980,29980,29981,29982,29983,29983,29983,29983,29984,29984,29984,29984,29985,29988,29989]} 1. e4 {[%emt 0:00:04]} c6 {[%emt 0:00:08]} 2. d4 {[%emt 0:00:09]} d5 {[%emt 0:00:02]} 3. exd5 {[%emt 0:00:08]} cxd5 {[%emt 0:00:01]} 4. c4 {[%emt 0:00:18]} Nf6 {[%emt 0:00:12]} 5. Nc3 {[%emt 0:00:07]} Nc6 {[%emt 0:00:28]} 6. Nf3 {[%emt 0:01:18]} Bg4 {[%emt 0:09:10]} 7. cxd5 {[%emt 0:00:40]} Nxd5 {[%emt 0:00:46]} 8. Qb3 {[%emt 0:00:14]} Bxf3 {[%emt 0:00:35]} 9. gxf3 {[%emt 0:00:02]} e6 {[%emt 0:01:27]} 10. Qxb7 {[%emt 0:00:21]} Nxd4 {[%emt 0:00:44]} 11. Bb5+ {[%emt 0:00:12]} Nxb5 {[%emt 0:00:37]} 12. Qc6+ {[%emt 0:00:07]} Ke7 {[%emt 0:01:41]} 13. Qxb5 {[%emt 0:00:12]} Qd7 {[%emt 0:21:52]} 14. Nxd5+ {[%emt 0:00:15]} Qxd5 {[%emt 0:01:26]} 15. Qxd5 {[%emt 0:00:07]} exd5 {[%emt 0:00:11]} 16. O-O {[%emt 0:00:05]} Rd8 {[%emt 0:10:27] B13: Caro-Kann: Exchange Variation and Panov-Botvinnik Attack.} 17. Rd1 {[%emt 0:02:04]} d4 {[%emt 0:05:17]} 18. Bf4 {[%emt 0:02:14]} Ke6 {[%emt 0:14:35] The position is equal.} 19. Rac1 {[%emt 0:00:13]} Rd5 {[%emt 0:02:50] [#]} 20. Rc4 $146 {[%emt 0:02:43]} ({Predecessor:} 20. Rc8 g5 21. Bd2 Bg7 22. Rc6+ Kd7 23. Ra6 Ra8 24. f4 g4 25. Kg2 Kc8 26. Rc1+ {1-0 (42) Del Lungo,P (2267)-Petruzzelli,R (2011) ICCF email 2018}) 20... Bc5 {[%emt 0:01:30]} (20... g5 $5 {[%cal Rg5f4]} 21. Bc1 Bg7 $11) 21. b4 {[%emt 0:00:15]} Bb6 {[%emt 0:02:44]} 22. a4 {[%emt 0:01:38]} d3 {[%emt 0:01:52]} 23. a5 {[%emt 0:01:44]} Bd4 {[%emt 0:00:15]} 24. Kf1 {[%emt 0:01:31]} (24. Rc6+ $1 $14 Kf5 25. Be3) 24... Bf6 {[%emt 0:11:02]} 25. Rc6+ {[%emt 0:02:52]} Kf5 {[%emt 0:00:29]} 26. Be3 {[%emt 0:00:11]} Rb8 {[%emt 0:01:50]} 27. Bxa7 {[%emt 0:03:02]} (27. Rc5 $5 {[%cal Rc5d5]} Ke6 28. Rxd5 Kxd5 29. Rxd3+ (29. Bxa7 Rxb4 30. Rxd3+ Kc6 $14) 29... Kc6 30. Bc5 $14 (30. Bxa7 Rxb4 31. Bb6 Ra4 $14)) 27... Rxb4 {[%emt 0:00:48]} 28. a6 {[%emt 0:00:03] Rc5 is the strong threat.} Ra4 {[%emt 0:05:56]} 29. Bc5 {[%emt 0:02:06]} Ra2 {[%emt 0:02:10]} (29... Bd4 $5 {[%cal Rd4c5]} 30. Rxd3 Rxc5 31. Rxc5+ Bxc5 32. Rd5+ Ke6 33. Rxc5 Rxa6 $15) 30. a7 {[%emt 0:01:38]} Bd4 {[%emt 0:03:16]} 31. Rc8 {[%emt 0:11:32] Black must now prevent Bxd4.} Rxf2+ {[%emt 0:00:06]} (31... Bxc5 $5 32. a8=Q Rxa8 33. Rxa8 Kf4 $11) 32. Kg1 {[%emt 0:01:18]} Rd2+ {[%emt 0:00:07]} 33. Bxd4 {[%emt 0:00:41]} Rxd1+ $11 {[%emt 0:00:07][%mdl 4096] Endgame KRR-KRB} 34. Kf2 {[%emt 0:00:14]} Rd2+ $2 {[%emt 0:00:33]} (34... Ra1 $1 $11 {and Black has nothing to worry.} 35. Bxa1 d2) 35. Ke3 $18 {[%emt 0:00:33]} Ra2 {[%emt 0:01:44] ( -> ...d2)} 36. a8=Q {[%emt 0:00:12] The board is on fire.} Rxa8 {[%emt 0:00:36]} 37. Rxa8 {[%emt 0:00:02] KRB-KR} d2 {[%emt 0:00:49]} 38. Ra1 {[%emt 0:00:03]} f6 {[%emt 0:00:23]} 39. Rd1 {[%emt 0:00:08]} g5 {[%emt 0:00:23]} 40. Rxd2 {[%emt 0:00:08]} h5 $2 {[%emt 0:00:20]} (40... Kg6 41. Ra2 Rd6) 41. Rc2 {[%emt 0:31:44] Rc5 would kill now.} Rd6 {[%emt 0:30:29]} 42. Rc5+ {[%emt 0:00:18]} Kg6 {[%emt 0:00:04]} 43. Rb5 {[%emt 0:00:04] Threatens to win with Rb6.} Re6+ {[%emt 0:00:47]} 44. Kd3 {[%emt 0:00:35] Hoping for Rb6.} Rc6 {[%emt 0:00:00]} (44... Re7 45. Rb6 Rf7) 45. Rb6 {[%emt 0:00:00]} Rxb6 {[%emt 0:00:00]} 46. Bxb6 {[%emt 0:00:00] KB-K3P} Kf5 {[%emt 0:00:00]} 47. Ke3 {[%emt 0:00:00]} g4 {[%emt 0:00:00]} 48. f4 {[%emt 0:00:00]} h4 {[%emt 0:00:00]} 49. Bc7 {[%emt 0:00:00]} h3 {[%emt 0:00:00]} 50. Kf2 {[%emt 0:00:00]} Ke4 {[%emt 0:00:00]} 51. Kg3 $2 {[%emt 0:00:00]} (51. f5 Kxf5 52. Kg3 Kg5 53. Bd6 f5 54. Bc7 Kg6 55. Kh4 Kh6 56. Be5) 51... f5 {[%emt 0:00:00]} 52. Kf2 {[%emt 0:00:00]} Kd3 {[%emt 0:00:00]} 53. Bd8 {[%emt 0:00:00]} Kd2 $2 {[%emt 0:00:00] [#]} (53... Ke4 $18 54. Bc7 Kd5) 54. Bh4 $2 {[%emt 0:00:00]} (54. Ba5+ $1 {mates} Kd3 55. Be1 Kc2 56. Ke3 g3 57. Bxg3 Kc3 58. Bf2 Kc4 59. Kd2) 54... Kd3 {[%emt 0:00:00]} 55. Ke1 {[%emt 0:00:00]} (55. Bg5 $18 {has better winning chances.}) 55... Ke4 $2 {[%emt 0:00:00][%mdl 8192] This move loses the game for Black.} (55... Ke3 $16 56. Bg3 Kd3) 56. Bg3 {[%emt 0:00:00] White mates.} Ke3 {[%emt 0:00:00]} 57. Kd1 {[%emt 0:00:00]} Kd3 {[%emt 0:00:00] [#]} 58. Kc1 $1 {[%emt 0:00:00]} Kc3 {[%emt 0:00:00]} 59. Kb1 {[%emt 0:00:00]} Kd2 {[%emt 0:00:00]} 60. Kb2 {[%emt 0:00:00]} Kd3 {[%emt 0:00:00]} 61. Kb3 {[%emt 0:00:00]} Kd4 {[%emt 0:00:15]} 62. Kb4 {[%emt 0:00:00]} Kd5 {[%emt 0:00:56]} 63. Kb5 {[%emt 0:00:00]} Kd6 {[%emt 0:00:39]} 64. Kb6 {[%emt 0:00:00]} Kd7 {[%emt 0:07:03]} 65. Kc5 {[%emt 0:00:00]} Ke6 {[%emt 0:00:18]} 66. Kc6 {[%emt 0:00:00]} Ke7 {[%emt 0:01:13]} 67. Kd5 {[%emt 0:00:00]} Kf6 {[%emt 0:00:27]} 68. Kd6 {[%emt 0:00:00]} Kf7 {[%emt 0:01:07]} 69. Ke5 {[%emt 0:00:00]} Kg6 {[%emt 0:00:35]} 70. Ke6 {[%emt 0:00:00] Weighted Error Value: White=0.06 (flawless) /Black=0.38} 1-0

[Event "44th Chess Olympiad Open 2022"]
[Site "Chennai"]
[Date "2022.08.05"]
[Round "7.61"]
[White "Hasford, John Kojo"]
[Black "Alfaro, William"]
[Result "1/2-1/2"]
[ECO "D02"]
[WhiteElo "1976"]
[BlackElo "2155"]
[Annotator "TA"]
[PlyCount "72"]
[EventDate "2022.07.29"]
[EventType "team-tourn"]
[EventCountry "IND"]
[SourceTitle "playchess.com"]
[Source "ChessBase"]
[SourceQuality "1"]
[WhiteTeam "Ghana"]
[BlackTeam "Nicaragua"]
[WhiteTeamCountry "GHA"]
[BlackTeamCountry "NCA"]
[TimeControl "40/5400+30:1800+30"]

{[%evp 16,72,8,3,0,0,11,-10,-13,-7,21,23,58,67,58,65,64,59,79,69,74,65,69,37,2,20,108,19,23,8,8,0,0,0,0,2,47,14,89,68,202,184,181,39,179,159,174,0,0,0,0,0,0,0,0,0,0,0,0]} 1. d4 {[%emt 0:01:22]} Nf6 {[%emt 0:00:11]} 2. Nf3 {[%emt 0:00:15]} g6 {[%emt 0:00:14]} 3. Bf4 {[%emt 0:00:31]} d5 {[%emt 0:00:12]} 4. e3 {[%emt 0:00:26]} Bg7 {[%emt 0:00:03]} 5. Be2 {[%emt 0:00:42]} c5 {[%emt 0:00:14]} 6. O-O {[%emt 0:01:05]} O-O {[%emt 0:01:16]} 7. h3 {[%emt 0:00:10]} Qb6 {[%emt 0:00:04]} 8. Qc1 {[%emt 0:01:11]} Nc6 {[%emt 0:00:29]} 9. c3 $1 {[%emt 0:00:12]} Bf5 {[%emt 0:00:09] D02: 1 d4 d5 2 Nf3 sidelines, including 2...Nf6 3 g3 and 2...Nf6 3 Bf4.} 10. Nbd2 {[%emt 0:02:59]} Rac8 {[%emt 0:04:25]} 11. dxc5 {[%emt 0:00:43]} Qxc5 {[%emt 0:00:03] [#]} 12. Nd4 $146 {[%emt 0:00:33]} ({Predecessor:} 12. Qd1 Rfd8 13. Qb3 Ne4 14. Nxe4 Bxe4 15. Bg3 e5 16. Ng5 Bf5 17. Qxb7 Bd7 18. Qb3 {1-0 (43) Lochte,S (1850)-Iyengar,I (2044) London 2017}) 12... e5 {[%emt 0:00:43]} (12... Bd7 $5 {[%cal Re7e5]}) 13. Nxf5 {[%emt 0:01:10]} exf4 {[%emt 0:00:06]} 14. Nb3 {[%emt 0:00:29]} Qb6 {[%emt 0:00:29]} 15. Nxg7 {[%emt 0:00:42]} Kxg7 {[%emt 0:00:18]} 16. exf4 {[%emt 0:01:15]} d4 {[%emt 0:00:02]} 17. Bf3 {[%emt 0:06:28]} dxc3 {[%emt 0:06:09]} 18. bxc3 {[%emt 0:00:13]} Nb4 {[%emt 0:03:55]} 19. Qd2 {[%emt 0:02:54] Prevents Nfd5.} Rfd8 $1 {[%emt 0:00:06]} 20. Nd4 {[%emt 0:00:23]} Nc2 {[%emt 0:00:40]} 21. Qxc2 {[%emt 0:01:27]} (21. Nf5+ $16 gxf5 22. Qxc2) 21... Rxd4 $11 {[%emt 0:05:13]} 22. Rab1 {[%emt 0:01:09]} Qa5 {[%emt 0:00:05]} 23. Rxb7 {[%emt 0:06:10]} Rxc3 {[%emt 0:01:10]} 24. Qe2 {[%emt 0:01:11] [#] Black must now prevent Qe7.} Rxf4 {[%emt 0:00:02]} 25. Qe7 {[%emt 0:01:01][%csl LRa7,LRf7]} Ng8 {[%emt 0:00:01]} 26. Rxa7 {[%emt 0:01:13]} Qf5 {[%emt 0:02:33]} (26... Nxe7 $11 27. Rxa5 Nf5) 27. Qd6 $16 {[%emt 0:04:40] And now Ra8 would win. White is more active.} Rcxf3 {[%emt 0:12:51]} ({Black should play} 27... Rd3 $14 28. Qc7 Rdxf3 29. gxf3 Qg5+ 30. Kh1 Rxf3) 28. gxf3 $18 {[%emt 0:02:03]} Rxf3 {[%emt 0:01:11] [#]} 29. Ra8 {[%emt 0:06:04]} ({White should try} 29. Ra3 $1 $18) 29... Qxh3 {[%emt 0:00:08]} (29... Qg5+ $14 30. Kh2 Qf5 31. Qf8+ Kf6 32. Qd8+ (32. Qxg8 $2 Rxh3+ 33. Kg2 Qg4#) 32... Kg7 33. Qf8+ (33. Qxg8+ Kh6 $11) 33... Kf6 34. Qd6+ (34. Qxg8 $2 Rxh3+ 35. Kg2 Qg4#) 34... Kg7) 30. Qf8+ {[%emt 0:00:33]} Kf6 {[%emt 0:00:01]} 31. Ra6+ $2 {[%emt 0:00:48] Really sharp!} (31. Qxg8 $2 Qg4+ 32. Kh2 Rh3#) (31. Ra4 $18 Kg5 32. Qd8+ (32. Qxg8 Rg3+ 33. fxg3 Qxg3+ 34. Kh1 Qh3+ 35. Kg1 Qg3+ 36. Kh1 Qh3+ 37. Kg1 Qg3+ $11) 32... Kh5 33. Rb1 (33. Qxg8 Rg3+ 34. fxg3 Qxg3+ 35. Kh1 Qh3+ 36. Kg1 Qg3+ 37. Kh1 Qh3+ 38. Kg1 Qg3+ $11)) 31... Kg5 $11 {[%emt 0:00:03] The position is equal.} 32. Ra5+ {[%emt 0:02:15][%cal Ba6a5,Ba5a4,Ba4f4][%mdl 32]} (32. Qxg8 $2 Qg4+ 33. Kh2 Rh3#) 32... f5 {[%emt 0:00:14]} 33. Qd8+ {[%emt 0:01:01]} (33. Qxg8 $2 {is a self mate.} Qg4+ 34. Kh2 Rh3#) 33... Kh5 {[%emt 0:10:53] ( -> ...Qg4+)} (33... Nf6 $5 34. Ra4 Rg3+ 35. fxg3 Qxg3+ 36. Kh1 Qh3+ 37. Kg1 Qg3+ 38. Kh1 Qh3+ 39. Kg1 Qg3+ $11) 34. Ra4 {[%emt 0:06:27] Prevents Qg4+. Hoping for Rb1.} (34. Qxg8 $2 {leads to mate.} Qg4+ 35. Kh2 Rh3#) 34... Nh6 {[%emt 0:00:11] ...Ng4 is the strong threat.} 35. Qc7 {[%emt 0:02:14]} f4 {[%emt 0:07:13]} 36. Rxf4 {[%emt 0:11:04]} Rg3+ $1 {[%emt 0:00:16] Weighted Error Value: White=0.24 (precise) /Black=0.31} 1/2-1/2

[Event "44th Chess Olympiad Open 2022"]
[Site "Chennai"]
[Date "2022.08.05"]
[Round "7.61"]
[White "Fomevor, Cephas Clinton"]
[Black "Salazar Cabezas, Alberto Javier"]
[Result "1-0"]
[ECO "A25"]
[WhiteElo "1830"]
[BlackElo "2155"]
[Annotator "NA RC"]
[PlyCount "91"]
[EventDate "2022.07.29"]
[EventType "team-tourn"]
[EventCountry "IND"]
[SourceTitle "playchess.com"]
[Source "ChessBase"]
[SourceQuality "1"]
[WhiteTeam "Ghana"]
[BlackTeam "Nicaragua"]
[WhiteTeamCountry "GHA"]
[BlackTeamCountry "NCA"]
[TimeControl "40/5400+30:1800+30"]

1. c4 {[%emt 0:00:01]} e5 {[%emt 0:00:13]} 2. g3 {[%emt 0:00:15]} Nc6 {[%emt 0:00:05]} 3. Bg2 {[%emt 0:00:16]} f5 {[%emt 0:00:11]} 4. Nc3 {[%emt 0:00:24]} Nf6 {[%emt 0:00:09]} 5. e3 {[%emt 0:00:45]} d5 {[%emt 0:00:28]} 6. cxd5 {[%emt 0:00:33]} Nb4 {[%emt 0:00:05]} 7. d3 {[%emt 0:01:34]} Nfxd5 {[%emt 0:01:08]} 8. Nxd5 {[%emt 0:00:55]} Nxd5 {[%emt 0:00:09]} 9. Nf3 {[%emt 0:01:55]} Bd6 {[%emt 0:02:43]} 10. O-O {[%emt 0:00:49]} O-O {[%emt 0:12:37]} 11. Qb3 {[%emt 0:03:19]} Be6 {[%emt 0:00:35]} 12. Nd4 {[%emt 0:02:30]} exd4 {[%emt 0:09:59]} 13. Bxd5 {[%emt 0:00:19]} Bf7 {[%emt 0:07:48]} 14. Qxb7 {[%emt 0:03:24]} Rb8 {[%emt 0:00:07]} 15. Bxf7+ {[%emt 0:02:06]} Rxf7 {[%emt 0:00:01]} 16. Qxa7 {[%emt 0:02:17]} c5 {[%emt 0:12:40]} 17. Qa4 {[%emt 0:01:16]} dxe3 {[%emt 0:07:46]} 18. fxe3 {[%emt 0:02:06]} Rb4 {[%emt 0:02:36]} 19. Qc6 {[%emt 0:14:28]} Bf8 {[%emt 0:26:03]} 20. Rd1 {[%emt 0:04:00]} Rf6 {[%emt 0:02:01]} 21. Qf3 {[%emt 0:02:08]} g6 {[%emt 0:02:52]} 22. Bd2 {[%emt 0:05:50]} Rb8 {[%emt 0:01:35]} 23. Bc3 {[%emt 0:01:20]} Re6 {[%emt 0:00:01]} 24. e4 {[%emt 0:03:18]} f4 {[%emt 0:00:40]} 25. Qxf4 {[%emt 0:02:26]} Bd6 {[%emt 0:00:11]} 26. e5 {[%emt 0:02:02]} Be7 {[%emt 0:00:01]} 27. Qf3 {[%emt 0:01:46]} Qd7 {[%emt 0:00:47]} 28. a4 {[%emt 0:03:35]} Rf8 {[%emt 0:00:06]} 29. Qe2 {[%emt 0:05:09]} Qd5 {[%emt 0:00:50]} 30. a5 {[%emt 0:05:40]} Ra8 {[%emt 0:01:11]} 31. Qe4 {[%emt 0:02:45]} Qxe4 {[%emt 0:00:15]} 32. dxe4 {[%emt 0:00:02]} Rea6 {[%emt 0:01:18]} 33. Rd7 {[%emt 0:02:34]} Kf7 {[%emt 0:00:32]} 34. Rad1 {[%emt 0:01:17]} Ke6 {[%emt 0:00:13]} 35. Rc7 {[%emt 0:02:26]} R8a7 {[%emt 0:02:03]} 36. Rdd7 {[%emt 0:02:06]} Rxc7 {[%emt 0:00:14]} 37. Rxc7 {[%emt 0:00:02]} Ra8 {[%emt 0:02:18]} 38. Kf1 {[%emt 0:00:57]} g5 {[%emt 0:02:35]} 39. Ke2 {[%emt 0:02:01]} Rd8 {[%emt 0:00:55]} 40. a6 {[%emt 0:06:45]} Ra8 {[%emt 0:00:28]} 41. a7 {[%emt 0:31:27]} h5 {[%emt 0:04:30]} 42. Kd3 {[%emt 0:00:00]} g4 {[%emt 0:00:59]} 43. Kc4 {[%emt 0:00:00]} h4 {[%emt 0:00:50]} 44. Kb5 {[%emt 0:00:00]} h3 {[%emt 0:00:52]} 45. Ka6 {[%emt 0:00:00]} c4 {[%emt 0:03:23]} 46. Kb7 {[%emt 0:00:00]} 1-0

[Event "44th Chess Olympiad Open 2022"]
[Site "Chennai"]
[Date "2022.08.05"]
[Round "7.62"]
[White "Jimma, Desalegn Fekadu"]
[Black "Prudente, Elmer"]
[Result "1/2-1/2"]
[ECO "E90"]
[WhiteElo "2112"]
[BlackElo "1995"]
[Annotator "NA RC"]
[PlyCount "98"]
[EventDate "2022.07.29"]
[EventType "team-tourn"]
[EventCountry "IND"]
[SourceTitle "playchess.com"]
[Source "ChessBase"]
[SourceQuality "1"]
[WhiteTeam "Ethiopia"]
[BlackTeam "GUM"]
[WhiteTeamCountry "ETH"]
[TimeControl "40/5400+30:1800+30"]

1. d4 {[%emt 0:00:01]} g6 {[%emt 0:00:13]} 2. c4 {[%emt 0:00:06]} Nf6 {[%emt 0:00:07]} 3. Nc3 {[%emt 0:00:06]} Bg7 {[%emt 0:00:05]} 4. e4 {[%emt 0:00:19]} d6 {[%emt 0:00:06]} 5. Nf3 {[%emt 0:02:55]} O-O {[%emt 0:00:09]} 6. h3 {[%emt 0:00:08]} e5 {[%emt 0:01:16]} 7. d5 {[%emt 0:01:52]} Na6 {[%emt 0:00:30]} 8. Bd3 {[%emt 0:00:35]} Nc5 {[%emt 0:00:28]} 9. Bc2 {[%emt 0:00:12]} a5 {[%emt 0:00:00]} 10. Be3 {[%emt 0:00:43]} b6 {[%emt 0:01:43]} 11. O-O {[%emt 0:00:19]} Nh5 {[%emt 0:06:42]} 12. Nh2 {[%emt 0:12:02]} Bd7 {[%emt 0:02:35]} 13. Kh1 {[%emt 0:08:49]} Qe8 {[%emt 0:08:02]} 14. g4 {[%emt 0:12:08]} Nf4 {[%emt 0:01:39]} 15. Qf3 {[%emt 0:00:26]} f5 {[%emt 0:09:21]} 16. gxf5 {[%emt 0:07:01]} gxf5 {[%emt 0:00:39]} 17. Rg1 {[%emt 0:02:51]} fxe4 {[%emt 0:02:13]} 18. Qg3 {[%emt 0:04:57]} Qe7 {[%emt 0:00:37]} 19. Ng4 {[%emt 0:02:10]} Kh8 {[%emt 0:02:33]} 20. Bxc5 {[%emt 0:02:59]} bxc5 {[%emt 0:01:59]} 21. Bxe4 {[%emt 0:00:20]} Rab8 {[%emt 0:01:31]} 22. b3 {[%emt 0:01:18]} Bf5 {[%emt 0:00:22]} 23. Rae1 {[%emt 0:01:03]} Nh5 {[%emt 0:12:37]} 24. Qg2 {[%emt 0:13:55]} Qh4 {[%emt 0:00:46]} 25. Re3 {[%emt 0:09:16]} Bd7 {[%emt 0:06:14]} 26. Ne2 {[%emt 0:01:56]} Rf7 {[%emt 0:00:18]} 27. Nh2 {[%emt 0:03:01]} Rxf2 {[%emt 0:02:11]} 28. Nf3 {[%emt 0:07:36]} Rxg2 {[%emt 0:05:23]} 29. Nxh4 {[%emt 0:00:03]} Rxg1+ {[%emt 0:00:24]} 30. Kxg1 {[%emt 0:00:53]} Rf8 {[%emt 0:00:40]} 31. Kg2 {[%emt 0:01:13]} Bh6 {[%emt 0:01:36]} 32. Rf3 {[%emt 0:00:22]} Nf4+ {[%emt 0:00:39]} 33. Nxf4 {[%emt 0:00:11]} Rxf4 {[%emt 0:00:41]} 34. Rxf4 {[%emt 0:00:11]} Bxf4 {[%emt 0:00:04]} 35. Bf5 {[%emt 0:01:31]} Bxf5 {[%emt 0:01:34]} 36. Nxf5 {[%emt 0:00:03]} e4 {[%emt 0:00:22]} 37. Ng3 {[%emt 0:02:42]} Bxg3 {[%emt 0:18:52]} 38. Kxg3 {[%emt 0:00:02]} Kg7 {[%emt 0:00:08]} 39. Kf4 {[%emt 0:00:07]} Kf6 {[%emt 0:00:06]} 40. Kxe4 {[%emt 0:00:55]} Kg5 {[%emt 0:00:06]} 41. Kf3 {[%emt 0:30:07]} Kh4 {[%emt 0:31:02]} 42. Kg2 {[%emt 0:00:08]} h6 {[%emt 0:00:37]} 43. Kh2 {[%emt 0:01:43]} Kh5 {[%emt 0:03:57]} 44. Kg3 {[%emt 0:00:00]} Kg5 {[%emt 0:00:00]} 45. h4+ {[%emt 0:00:00]} Kf5 {[%emt 0:00:00]} 46. Kf3 {[%emt 0:00:00]} h5 {[%emt 0:00:00]} 47. a3 {[%emt 0:00:00]} Ke5 {[%emt 0:00:00]} 48. Ke3 {[%emt 0:00:00]} Kf5 {[%emt 0:00:00]} 49. Kf3 {[%emt 0:00:00]} Ke5 {[%emt 0:00:15]} 1/2-1/2